[Event "III. World-ch for Disabled 2017"]
[Site "Dresden"]
[Date "2017.10.06"]
[Round "1.4"]
[White "Hentzschel, Erhard"]
[Black "Wielecki, Zygmunt"]
[Result "0-1"]
[ECO "B50"]
[WhiteElo "1885"]
[BlackElo "2199"]
[Annotator "ChessBase"]
[PlyCount "30"]
[EventDate "2017.??.??"]
[EventType "swiss"]
[EventCountry "GER"]
[SourceTitle "playchess.com"]
[Source "ChessBase"]
[SourceQuality "1"]
[TimeControl "40/5400+30:1800+30"]

1. e4 {[%emt 1:30:17]} c5 {[%emt 1:30:17]} 2. Nc3 {[%emt 1:30:17]} e6 {[%emt 1:28:06]} 3. Nf3 {[%emt 1:27:24]} a6 {[%emt 1:27:45]} 4. a4 {[%emt 1:26:28]} d6 {[%emt 1:23:37]} 5. Bc4 {[%emt 1:23:48]} Nf6 {[%emt 1:23:33]} 6. d3 {[%emt 1:21:19]} Be7 {[%emt 1:20:33]} 7. Bg5 {[%emt 1:16:35]} O-O {[%emt 1:16:35]} 8. Qd2 {[%emt 1:17:17]} b6 {[%emt 1:14:27]} 9. e5 {[%emt 1:07:02]} dxe5 {[%emt 1:07:02]} 10. Nxe5 {[%emt 1:14:14]} Bb7 {[%emt 1:14:14]} 11. Nxf7 {[%emt 1:14:14]} Kxf7 {[%emt 1:14:14]} 12. Qe3 {[%emt 0:54:43]} Nd5 {[%emt 0:54:43]} 13. Qf3+ {[%emt 0:52:55]} Kg8 {[%emt 0:52:55]} 14. Qe4 {[%emt 1:11:24]} Bxg5 {[%emt 0:41:12]} 15. Qxe6+ {[%emt 1:11:31]} Kh8 0-1

[Event "III. World-ch for Disabled 2017"]
[Site "Dresden"]
[Date "2017.10.07"]
[Round "2.3"]
[White "Varezhkin, Viktor"]
[Black "Checiak, Krzysztof"]
[Result "1-0"]
[ECO "D43"]
[WhiteElo "2243"]
[BlackElo "2049"]
[Annotator "ChessBase"]
[PlyCount "85"]
[EventDate "2017.??.??"]
[EventType "swiss"]
[EventCountry "GER"]
[SourceTitle "playchess.com"]
[Source "ChessBase"]
[SourceQuality "1"]
[TimeControl "40/5400+30:1800+30"]

1. d4 {[%emt 1:30:25]} d5 {[%emt 1:25:19]} 2. Nf3 {[%emt 1:30:49]} Nf6 {[%emt 1:24:55]} 3. c4 {[%emt 1:31:14]} e6 {[%emt 1:31:14]} 4. Nc3 {[%emt 1:31:14]} c6 {[%emt 1:24:31]} 5. Qb3 {[%emt 1:31:05]} Nbd7 {[%emt 1:21:23]} 6. g3 {[%emt 1:21:23]} Bd6 {[%emt 1:18:34]} 7. Bf4 {[%emt 1:18:34]} dxc4 {[%emt 1:23:02]} 8. Qxc4 {[%emt 1:22:50]} Qc7 {[%emt 1:04:22]} 9. Bxd6 {[%emt 1:22:21]} Qxd6 {[%emt 1:22:21]} 10. Rd1 {[%emt 1:22:21]} O-O {[%emt 0:54:23]} 11. Bg2 {[%emt 1:20:08]} a5 {[%emt 0:44:12]} 12. a3 {[%emt 1:16:52]} b5 {[%emt 0:40:09]} 13. Qd3 {[%emt 1:06:27]} Ba6 {[%emt 0:33:23]} 14. Ne4 {[%emt 0:56:02]} Nxe4 {[%emt 0:29:43]} 15. Qxe4 {[%emt 0:56:24]} Rac8 {[%emt 0:56:24]} 16. O-O {[%emt 0:50:32]} Rfd8 {[%emt 0:21:35]} 17. Rd2 {[%emt 0:49:53]} Qe7 {[%emt 0:16:28]} 18. Rfd1 {[%emt 0:49:05]} Nf6 {[%emt 0:15:22]} 19. Qc2 {[%emt 0:48:13]} h6 {[%emt 0:13:28]} 20. Ne5 {[%emt 0:13:28]} Bb7 {[%emt 0:13:35]} 21. e3 {[%emt 0:45:46]} c5 {[%emt 0:10:13]} 22. Bxb7 {[%emt 0:10:13]} Qxb7 {[%emt 0:10:41]} 23. dxc5 {[%emt 0:42:42]} Rxd2 {[%emt 0:10:49]} 24. Rxd2 {[%emt 0:39:46]} Qc7 {[%emt 0:10:52]} 25. Nf3 {[%emt 0:38:35]} b4 {[%emt 0:10:54]} 26. axb4 {[%emt 0:10:54]} axb4 {[%emt 0:11:23]} 27. Rd4 {[%emt 0:35:39]} Rb8 {[%emt 0:10:51]} 28. Nd2 {[%emt 0:10:51]} Nh7 {[%emt 0:10:04]} 29. h4 {[%emt 0:31:53]} Nf6 {[%emt 0:31:53]} 30. Nb3 {[%emt 0:31:47]} Nd5 {[%emt 0:10:24]} 31. Qd2 {[%emt 0:30:15]} Qc6 {[%emt 0:10:28]} 32. f3 {[%emt 0:27:58]} Qa4 {[%emt 0:09:08]} 33. Qd3 {[%emt 0:27:29]} Qa2 {[%emt 0:09:11]} 34. e4 {[%emt 0:27:01]} Nf6 {[%emt 0:07:45]} 35. Qc2 {[%emt 0:24:33]} Qa7 {[%emt 0:06:14]} 36. Kg2 {[%emt 0:24:17]} Qc7 {[%emt 0:06:34]} 37. Qd2 {[%emt 0:24:05]} Nh5 {[%emt 0:24:05]} 38. Rd6 {[%emt 0:23:53]} Qe7 {[%emt 0:05:00]} 39. e5 {[%emt 0:23:12]} g5 {[%emt 0:04:42]} 40. Rd7 {[%emt 0:04:42]} Qe8 {[%emt 0:04:20]} 41. c6 {[%emt 0:04:20]} Rc8 {[%emt 0:02:45]} 42. c7 {[%emt 0:02:45]} Kg7 {[%emt 0:00:42]} 43. hxg5 {[%emt 0:22:55]} 1-0

[Event "III. World-ch for Disabled 2017"]
[Site "Dresden"]
[Date "2017.10.07"]
[Round "2.4"]
[White "Wielecki, Zygmunt"]
[Black "Uzialko, Marek"]
[Result "1/2-1/2"]
[ECO "C98"]
[WhiteElo "2199"]
[BlackElo "2043"]
[Annotator "ChessBase"]
[PlyCount "71"]
[EventDate "2017.??.??"]
[EventType "swiss"]
[EventCountry "GER"]
[SourceTitle "playchess.com"]
[Source "ChessBase"]
[SourceQuality "1"]
[TimeControl "40/5400+30:1800+30"]

1. e4 {[%emt 1:30:19]} e5 {[%emt 1:30:00]} 2. Nf3 {[%emt 1:30:10]} Nc6 {[%emt 1:29:44]} 3. Bb5 {[%emt 1:29:54]} a6 {[%emt 1:29:03]} 4. Ba4 {[%emt 1:28:54]} Nf6 {[%emt 1:27:45]} 5. O-O {[%emt 1:28:04]} b5 {[%emt 1:26:24]} 6. Bb3 {[%emt 1:26:24]} d6 {[%emt 1:25:11]} 7. c3 {[%emt 1:25:54]} Na5 {[%emt 1:23:43]} 8. Bc2 {[%emt 1:25:46]} c5 {[%emt 1:21:36]} 9. h3 {[%emt 1:25:14]} Be7 {[%emt 1:19:35]} 10. Re1 {[%emt 1:25:03]} O-O {[%emt 1:25:03]} 11. d4 {[%emt 1:25:03]} Qc7 {[%emt 1:15:51]} 12. Nbd2 {[%emt 1:24:33]} Nc6 {[%emt 1:15:44]} 13. d5 {[%emt 1:15:44]} Nd8 {[%emt 1:14:10]} 14. Nf1 {[%emt 1:13:20]} Ne8 {[%emt 1:09:32]} 15. Ng3 {[%emt 1:12:26]} g6 {[%emt 1:08:55]} 16. Bh6 {[%emt 1:11:31]} Ng7 {[%emt 1:08:06]} 17. Qd2 {[%emt 1:09:21]} f6 {[%emt 1:09:21]} 18. b3 {[%emt 1:04:24]} Nf7 {[%emt 0:57:26]} 19. Be3 {[%emt 0:58:12]} Bd7 {[%emt 0:50:39]} 20. a4 {[%emt 0:58:28]} Rab8 {[%emt 0:42:07]} 21. axb5 {[%emt 0:58:31]} axb5 {[%emt 0:42:24]} 22. Ra2 {[%emt 0:57:59]} Ra8 {[%emt 0:41:53]} 23. Rea1 {[%emt 0:58:15]} Qb7 {[%emt 0:34:41]} 24. b4 {[%emt 0:51:39]} Rxa2 {[%emt 0:34:44]} 25. Rxa2 {[%emt 0:51:54]} Ra8 {[%emt 0:34:06]} 26. Bd3 {[%emt 0:50:26]} Rxa2 {[%emt 0:33:10]} 27. Qxa2 {[%emt 0:50:49]} c4 {[%emt 0:33:16]} 28. Bc2 {[%emt 0:51:05]} f5 {[%emt 0:32:50]} 29. exf5 {[%emt 0:50:59]} Nxf5 {[%emt 0:32:46]} 30. Nxf5 {[%emt 0:50:50]} Bxf5 {[%emt 0:50:50]} 31. Bxf5 {[%emt 0:50:50]} gxf5 {[%emt 0:50:50]} 32. Qa7 {[%emt 0:51:00]} Qxa7 {[%emt 0:32:04]} 33. Bxa7 {[%emt 0:51:11]} Ng5 {[%emt 0:31:37]} 34. Nxg5 {[%emt 0:51:22]} Bxg5 {[%emt 0:51:22]} 35. Be3 {[%emt 0:51:28]} Bxe3 {[%emt 0:32:08]} 36. fxe3 {[%emt 0:51:49]} 1/2-1/2

[Event "III. World-ch for Disabled 2017"]
[Site "Dresden"]
[Date "2017.10.08"]
[Round "3.4"]
[White "Zimmer, Raphael"]
[Black "Mate, Balazs"]
[Result "1-0"]
[ECO "B77"]
[WhiteElo "2007"]
[BlackElo "2081"]
[Annotator "NA RC"]
[PlyCount "85"]
[EventDate "2017.??.??"]
[EventType "swiss"]
[EventCountry "GER"]
[SourceTitle "playchess.com"]
[Source "ChessBase"]
[SourceQuality "1"]
[TimeControl "40/5400+30:1800+30"]

{[%evp 8,75,20,14,58,0,7,-2,2,-2,43,24,42,18,68,73,76,50,58,50,99,91,84,100,95,62,84,95,199,0,35,1,12,12,23,72,22,-6,73,-30,133,87,421,0,133,160,206,-47,-42,-56,0,-91,133,21,329,103,97,82,298,313,306,324,396,389,383,534,453,554,606,500]} 1. e4 {[%emt 1:30:27]} c5 {[%emt 1:30:10]} 2. Nf3 {[%emt 1:30:44]} Nc6 {[%emt 1:30:28]} 3. d4 {[%emt 1:31:00]} cxd4 {[%emt 1:30:24]} 4. Nxd4 {[%emt 1:31:15]} Nf6 {[%emt 1:29:20]} 5. Nc3 {[%emt 1:31:24]} g6 {[%emt 1:28:41]} 6. Be3 {[%emt 1:31:08]} (6. Nxc6 $14 bxc6 7. e5) 6... Bg7 {[%emt 1:28:05]} 7. Bc4 {[%emt 1:30:52]} O-O {[%emt 1:24:55]} 8. Bb3 {[%emt 1:30:21]} Qa5 {[%emt 1:22:07]} 9. f3 {[%emt 1:29:08]} d6 {[%emt 1:06:45]} 10. Qd2 {[%emt 1:26:43]} Bd7 {[%emt 1:01:01]} ({Black should play} 10... Nxd4 $11 11. Bxd4 Be6) 11. O-O-O {[%emt 1:25:28]} Ne5 {[%emt 0:58:45]} 12. h4 {[%emt 1:21:46]} Rfc8 {[%emt 0:49:18]} 13. Kb1 {[%emt 1:21:14]} Nc4 {[%emt 0:45:53] [#]} 14. Bxc4 $1 {[%emt 1:21:18]} Rxc4 {[%emt 0:46:19]} 15. Nb3 {[%emt 1:21:03] LiveBook: 208 Games} Qa6 {[%emt 0:33:46]} 16. Bd4 {[%emt 1:17:26]} Rac8 {[%emt 0:32:10] [#] B79: Sicilian Dragon: Yugoslav Attack, 9 Bc4 Bd7 10 0-0-0 Qa5} 17. h5 $1 {[%emt 1:10:19]} b5 {[%emt 0:29:49]} ({Avoid the trap} 17... Nxh5 $2 18. Bxg7 Kxg7 19. g4 $18) (17... e5 $16 {was necessary.} 18. Bf2 (18. Be3 Nxh5 19. Bh6 Bxh6 20. Qxh6 Rxc3 21. bxc3 Nf6 22. Qd2 Rc6 23. g4 Be6 24. Qg5 {1-0 (37) Svetushkin,D (2472)-Rogers,I (2558) Istanbul 2000}) 18... Nxh5) 18. Rc1 $2 {[%emt 1:09:05]} ({Better is} 18. Bxf6 $18 exf6 19. Qxd6 Qxd6 20. Rxd6) 18... Be6 {[%emt 0:23:53]} ({Of course not} 18... gxh5 $6 19. Bxf6 Bxf6 20. Rxh5 $16) ({But not} 18... Nxh5 $2 19. Bxg7 Kxg7 20. g4 $18) 19. hxg6 {[%emt 1:06:19]} hxg6 {[%emt 1:06:19]} 20. Nd5 $146 {[%emt 0:22:13]} ({Predecessor:} 20. g4 R8c6 21. g5 Rxd4 22. Nxd4 b4 23. Nxe6 bxc3 24. Qd3 {½-½ (60) Espinoza Palomino,W (2281)-Akunka,D (2010) Thessaloniki 2009}) 20... Bxd5 {[%emt 0:21:02]} ({Avoid the trap} 20... Nxd5 $2 21. Bxg7 (21. exd5 Bf5 $11) 21... Nb4 22. a3 $16) 21. exd5 {[%emt 1:04:48]} Ra4 {[%emt 0:18:50]} 22. g4 {[%emt 0:55:55]} (22. Rce1 $5 {[%cal Re1e7]} Qb7 23. Rh2 $14) 22... Qb7 {[%emt 0:16:29]} (22... Rxa2 $11 23. Rce1 Kf8) 23. Bxf6 {[%emt 0:16:29]} (23. g5 $16 Nh5 24. Bxg7 Kxg7 25. Rh2) 23... exf6 {[%emt 0:14:54]} (23... Bxf6 $11 {keeps the balance.} 24. Rce1 Qa6) 24. Rh3 {[%emt 0:47:26]} Re8 $2 {[%emt 0:14:19]} (24... f5 $16) 25. Rd1 $2 {[%emt 0:37:57]} (25. Rch1 $18 f5 26. Qh2) 25... Re5 {[%emt 0:09:48]} (25... f5 $11) 26. f4 {[%emt 0:26:04]} Ree4 {[%emt 0:09:59] [#]} (26... Re8 $16) 27. Rf3 $2 {[%emt 0:23:35]} (27. Rdh1 $1 $18) 27... Qe7 {[%emt 0:23:35]} 28. Rf2 {[%emt 0:22:57]} Re3 {[%emt 0:08:30]} ({Better is} 28... f5 $15 29. g5 Kf8) 29. Nd4 {[%emt 0:21:56]} (29. Nc1 $11) 29... Qe8 {[%emt 0:04:49] [#]} (29... Qe4 $11 30. Nxb5 f5 31. Nxd6 Qe7) 30. Nxb5 {[%emt 0:16:57]} (30. f5 $1 $16) 30... Rg3 $2 {[%emt 0:03:35]} 31. Nc3 $2 {[%emt 0:16:27]} (31. Nxd6 $18 {und der Rest ist Schweigen.} Qd7 32. Qe1 (32. b3 Qxd6 33. Qe2 Rb4 $17)) 31... Rc4 {[%emt 0:16:27]} 32. Re1 {[%emt 0:15:23]} Qc8 $2 {[%emt 0:15:23]} (32... Qd7 $16) 33. Ne4 {[%emt 0:15:15]} Rxe4 {[%emt 0:00:28]} 34. Rxe4 {[%emt 0:15:36]} Qxg4 {[%emt 0:00:37]} 35. Re8+ {[%emt 0:14:56]} Bf8 {[%emt 0:00:53]} 36. a3 {[%emt 0:14:35]} Rg1+ $18 {[%emt 0:00:25]} 37. Ka2 {[%emt 0:14:56]} Rh1 {[%emt 0:00:10]} 38. Qb4 {[%emt 0:00:10]} Qh4 {[%emt 0:00:05]} 39. Qxd6 {[%emt 0:13:41]} Qh6 {[%emt 0:00:31]} 40. Qe7 {[%emt 0:00:31]} Rd1 {[%emt 0:13:28]} 41. Rh2 {[%emt 0:13:50]} Qg7 {[%emt 0:28:40]} 42. Rxf8+ {[%emt 0:44:10]} Qxf8 {[%emt 0:28:07]} 43. Rh8+ {[%emt 0:44:33]} 1-0

[Event "III. World-ch for Disabled 2017"]
[Site "Dresden"]
[Date "2017.10.08"]
[Round "4.6"]
[White "Scheffner, Jarno"]
[Black "Miozga, Tomasz"]
[Result "1/2-1/2"]
[ECO "B99"]
[WhiteElo "1801"]
[BlackElo "2023"]
[Annotator "NA RC"]
[PlyCount "61"]
[EventDate "2017.??.??"]
[EventType "swiss"]
[EventCountry "GER"]
[SourceTitle "playchess.com"]
[Source "ChessBase"]
[SourceQuality "1"]
[TimeControl "40/5400+30:1800+30"]

{[%evp 8,60,40,34,20,14,10,27,20,28,25,-24,41,22,50,17,39,0,10,7,27,28,13,32767,47,-14,-10,-6,-13,32767,39,32767,-22,-28,32767,-35,-4,32767,32767,32767,32767,32767,51,14,17,0,0,-14,-8,-27,0,-11,0,-16,0]} 1. e4 {[%emt 1:30:28]} c5 {[%emt 1:27:36]} 2. Nf3 {[%emt 1:30:49]} d6 {[%emt 1:28:01]} 3. d4 {[%emt 1:30:03]} cxd4 {[%emt 1:28:26]} 4. Nxd4 {[%emt 1:30:25]} Nf6 {[%emt 1:28:51]} 5. Nc3 {[%emt 1:30:15]} a6 {[%emt 1:29:18]} 6. Bg5 {[%emt 1:28:29]} e6 {[%emt 1:28:29]} 7. f4 {[%emt 1:29:37]} Be7 {[%emt 1:30:03]} 8. Qf3 {[%emt 1:28:34]} Qc7 {[%emt 1:30:06]} 9. g4 {[%emt 1:30:06]} ({Better is} 9. O-O-O $14) 9... Nbd7 {[%emt 1:25:26]} ({Black should try} 9... h6 $11 10. Bh4 Nbd7) 10. O-O-O {[%emt 1:23:46]} b5 {[%emt 1:30:49]} 11. Bxf6 {[%emt 1:22:55]} Nxf6 {[%emt 1:31:03]} 12. g5 {[%emt 1:23:17]} Nd7 {[%emt 1:31:28]} 13. f5 {[%emt 1:21:36]} Bxg5+ {[%emt 1:31:51]} 14. Kb1 {[%emt 1:22:03]} O-O {[%emt 1:20:19]} 15. fxe6 {[%emt 1:10:25]} Nb6 $1 {[%emt 1:20:41] LiveBook: 50 Games} ({Of course not} 15... fxe6 $6 16. Qg3 $16) 16. Qg3 {[%emt 1:08:56]} ({Better is} 16. Nd5 $14 Nxd5 17. exd5) 16... Bf6 $1 {[%emt 1:20:25]} 17. Nd5 {[%emt 0:36:49]} Nxd5 {[%emt 1:20:50]} 18. exd5 {[%emt 0:37:11]} fxe6 {[%emt 1:18:59]} (18... Bxd4 $5 19. Rxd4 fxe6 $11) 19. Nxe6 {[%emt 0:36:35]} (19. Z0 {[%emt 1:18:59]} e5 $2 {[%emt 1:18:59]} ({Resist} 19... exd5 20. Bg2 $15) (19... Bxd4 $19 20. Rxd4 e5)) 19... Bxe6 {[%emt 1:19:15]} 20. dxe6 {[%emt 0:36:54]} Be5 {[%emt 1:19:25]} 21. Qb3 {[%emt 0:36:56]} Kh8 {[%emt 1:19:41]} 22. Bh3 {[%emt 0:34:26]} Rf6 {[%emt 1:19:45]} 23. Rhf1 {[%emt 0:33:56]} Raf8 {[%emt 1:20:00]} 24. Rxf6 {[%emt 0:33:30]} Rxf6 {[%emt 1:18:29]} 25. Qd5 {[%emt 0:31:49]} g6 {[%emt 0:31:49]} 26. Qa8+ {[%emt 0:31:33]} Kg7 {[%emt 1:14:55]} 27. Qg2 {[%emt 1:14:55]} Qb6 {[%emt 1:05:30]} 28. Qa8 {[%emt 0:29:11]} Qc7 {[%emt 1:05:56]} 29. Qg2 {[%emt 0:29:32]} Qb6 {[%emt 1:06:13]} 30. Qa8 {[%emt 0:29:56]} Qc7 $11 {[%emt 1:06:28]} 31. Bf1 {[%emt 1:06:28]} 1/2-1/2

[Event "III. World-ch for Disabled 2017"]
[Site "Dresden"]
[Date "2017.10.10"]
[Round "5.1"]
[White "Lipilin, Ilia"]
[Black "Suder, Ryszard"]
[Result "1-0"]
[ECO "A16"]
[WhiteElo "1883"]
[BlackElo "2061"]
[Annotator "NA RC"]
[PlyCount "139"]
[EventDate "2017.??.??"]
[EventType "swiss"]
[EventCountry "GER"]
[SourceTitle "playchess.com"]
[Source "ChessBase"]
[SourceQuality "1"]
[TimeControl "40/5400+30:1800+30"]

{[%evp 8,139,33,39,35,-6,10,32767,32767,32767,32767,32767,32767,32767,32767,31,31,8,10,-8,33,18,30,2,43,-18,-12,-14,-17,-25,-20,-68,0,-56,7,-52,16,5,15,0,0,0,0,0,0,32767,0,0,4,0,3,0,32767,32767,32767,32767,32767,32767,32767,32767,32767,32767,0,0,0,0,31,16,0,0,0,0,30,-3,-3,0,0,0,0,0,0,0,0,0,0,0,12,6,0,6,0,6,0,0,0,0,0,2,3,0,0,0,3,3,0,3,0,3,0,0,7,11,26,26,1519,6025,6303,12839,6111,29974,29962,29976,29978,29980,12841,29981,12844,29981,29981,29983,29983,29984,29984,29985]} 1. c4 {[%emt 1:30:26]} Nf6 {[%emt 1:30:26]} 2. Nc3 {[%emt 1:30:47]} d5 {[%emt 1:30:13]} 3. cxd5 {[%emt 1:30:59]} Nxd5 {[%emt 1:30:35]} 4. g3 {[%emt 1:31:17]} g6 {[%emt 1:30:13]} 5. Bg2 {[%emt 1:30:13]} Nxc3 {[%emt 1:29:56]} 6. dxc3 {[%emt 1:31:52]} Qxd1+ {[%emt 1:28:54] LiveBook: 11 Games A16: English Opening: 1...Nf6 with ...d5} 7. Kxd1 {[%emt 1:28:21]} Bg7 {[%emt 1:28:21]} (7... e5 8. Nf3 f6 9. Be3 Nc6 10. Nd2 Ne7 11. Bc5 Nf5 12. Ne4 Bxc5 13. Nxc5 Rb8 14. Kc2 {½-½ (44) Drazic,S (2511)-Turov,M (2636) Sibenik 2012}) 8. Kc2 {[%emt 1:28:21]} c6 $146 {[%emt 1:26:48]} ({Predecessor:} 8... e5 9. e4 Be6 10. Nf3 f6 11. Be3 Nd7 12. Rhd1 O-O-O 13. Nd2 h5 14. h4 {½-½ (28) Kuzmicz,K (2479)-Bulski,K (2533) Poland 2015}) 9. e4 {[%emt 1:31:26]} e5 {[%emt 1:25:32]} 10. Be3 {[%emt 1:29:31]} Be6 {[%emt 1:23:26]} 11. Rd1 {[%emt 1:29:19]} Nd7 {[%emt 1:20:13]} 12. Nf3 {[%emt 1:20:13]} f6 {[%emt 1:28:33]} 13. Rd6 {[%emt 1:25:39]} Ke7 {[%emt 1:14:02]} 14. Rhd1 {[%emt 1:25:52]} Rhd8 {[%emt 1:14:14]} 15. h4 {[%emt 1:14:14]} Nb6 {[%emt 1:00:04]} 16. Bc5 {[%emt 1:11:57]} Rxd6 {[%emt 1:11:57]} 17. Bxd6+ {[%emt 1:08:03]} Kf7 {[%emt 0:58:34]} 18. Bc5 {[%emt 0:58:34]} Bf8 {[%emt 0:56:13]} 19. Be3 {[%emt 1:03:14]} Be7 {[%emt 0:46:52]} (19... Nc4 $15 20. Bc1 a5) 20. h5 {[%emt 0:57:28]} (20. Nd2 $11) 20... g5 {[%emt 0:44:59]} (20... Nc4 $15 21. Bc1 g5) 21. Nh2 {[%emt 0:54:48]} Rd8 {[%emt 0:43:43]} 22. Rxd8 {[%emt 0:43:43]} Bxd8 {[%emt 0:44:09]} 23. g4 {[%emt 0:44:09]} Nc8 {[%emt 0:53:04]} ({Much weaker is} 23... Bxa2 $6 24. b3 $16) 24. f3 {[%emt 0:42:07]} Bb6 {[%emt 0:41:23]} ({Much weaker is} 24... Bxa2 $6 25. b3 $16) 25. Bc1 {[%emt 0:41:23]} Nd6 {[%emt 0:37:53]} ({Reject} 25... Bxa2 $6 26. b3 $16) 26. Nf1 {[%emt 0:50:14]} Bf2 {[%emt 0:34:50]} ({Much worse is} 26... Bxa2 $6 27. b3 $16) 27. b3 {[%emt 0:49:50]} Bc5 {[%emt 0:31:28]} 28. Ng3 {[%emt 0:47:56]} Ke8 {[%emt 0:30:36]} 29. Bf1 {[%emt 0:48:00]} Bf2 {[%emt 0:28:42]} 30. Ne2 {[%emt 0:48:01]} Bc5 {[%emt 0:28:35]} 31. Bd2 {[%emt 0:47:37]} Bf2 {[%emt 0:28:02]} 32. Nc1 {[%emt 0:47:31]} Bg1 {[%emt 0:26:23]} 33. Be2 {[%emt 0:47:09]} Kd7 {[%emt 0:25:52]} 34. Nd3 {[%emt 0:47:09]} Nf7 {[%emt 0:25:32]} 35. Bc1 {[%emt 0:46:48]} b6 {[%emt 0:21:40]} 36. a4 {[%emt 0:45:42]} c5 {[%emt 0:20:13]} 37. Ba3 {[%emt 0:41:59]} Nd6 {[%emt 0:19:24]} 38. Nb2 {[%emt 0:41:42]} Kc6 {[%emt 0:17:27]} 39. Ba6 {[%emt 0:40:05]} Bc8 {[%emt 0:15:20]} 40. Bc4 {[%emt 0:37:27]} Nxc4 {[%emt 0:14:38]} 41. Nxc4 {[%emt 0:37:51]} Be6 {[%emt 0:14:30]} 42. Nb2 {[%emt 0:36:59]} a6 {[%emt 0:12:59]} 43. Nd3 {[%emt 0:36:00]} b5 {[%emt 0:09:18]} 44. axb5+ {[%emt 0:35:20]} axb5 {[%emt 0:09:39]} 45. Bc1 {[%emt 0:34:42]} Bxb3+ {[%emt 0:07:56]} 46. Kxb3 {[%emt 0:34:49]} c4+ {[%emt 0:08:19]} 47. Kc2 {[%emt 0:34:47]} cxd3+ {[%emt 0:08:43]} 48. Kxd3 {[%emt 0:34:54]} Bc5 {[%emt 0:07:44]} 49. Kc2 {[%emt 0:34:48]} Bd6 {[%emt 0:06:12]} 50. Kb3 {[%emt 0:34:52]} Be7 {[%emt 0:04:45]} 51. c4 {[%emt 0:04:45]} bxc4+ {[%emt 0:33:00]} 52. Kxc4 {[%emt 1:03:26]} Bd8 {[%emt 0:28:39]} 53. Ba3 {[%emt 1:03:40]} Kd7 {[%emt 0:29:00]} 54. Kd5 {[%emt 1:03:25]} Ba5 {[%emt 0:29:14]} 55. Bb2 {[%emt 1:01:47]} Bc7 {[%emt 1:01:47]} 56. Bc3 {[%emt 1:02:00]} Bb8 {[%emt 0:29:44]} 57. Bb4 {[%emt 1:01:53]} Bc7 {[%emt 0:30:01]} 58. Bd2 {[%emt 1:00:51]} Bd6 {[%emt 0:29:59]} 59. Ba5 {[%emt 1:00:55]} Bb8 {[%emt 1:00:55]} 60. Bb6 {[%emt 1:01:07]} Bd6 $2 {[%emt 0:30:35] [#]} (60... Ke7 $11) 61. Bd8 $1 {[%emt 0:59:49]} Be7 {[%emt 0:30:41] [#]} 62. Bxe7 $1 {[%emt 0:31:05]} Kxe7 {[%emt 0:31:05] [#]} 63. Kc6 $1 {[%emt 1:00:18]} Ke6 {[%emt 0:29:08]} 64. Kc7 {[%emt 1:00:36]} Ke7 {[%emt 0:29:10] [#]} 65. h6 $1 {[%emt 1:00:02]} Ke6 {[%emt 0:25:20] [#]} 66. Kd8 $1 {[%emt 0:25:20]} Kf7 {[%emt 0:25:33]} 67. Kd7 {[%emt 1:00:00]} Kg6 {[%emt 0:25:06]} 68. Ke6 {[%emt 1:00:15]} Kxh6 {[%emt 0:25:16]} 69. Kf7 {[%emt 0:59:26]} f5 {[%emt 0:25:32]} 70. gxf5 {[%emt 0:59:42]} 1-0